[Event "Late-Titled-Tuesday-Blitz-June-18-2024"]
[Site "Chess.com"]
[Date "2024.06.18"]
[Round "5"]
[White "pompey831"]
[Black "EliteChess0967"]
[Result "1-0"]
[WhiteElo "2523"]
[BlackElo "2387"]
[TimeControl "180+1"]
[EndTime "14:57:51 PDT"]
[Termination "pompey831 won by resignation"]

1. e4 {[%clk 0:02:57.6]} 1... e5 {[%clk 0:02:57]} 2. Bc4 {[%clk 0:02:53.3]} 2...
Nc6 {[%clk 0:02:56.1]} 3. d3 {[%clk 0:02:52.8]} 3... Bc5 {[%clk 0:02:52.3]} 4.
Nc3 {[%clk 0:02:51]} 4... d6 {[%clk 0:02:50.7]} 5. f4 {[%clk 0:02:47.8]} 5...
exf4 {[%clk 0:02:32.7]} 6. Bxf4 {[%clk 0:02:46.1]} 6... Nf6 {[%clk 0:02:32.2]}
7. Qd2 {[%clk 0:02:45.3]} 7... O-O {[%clk 0:02:25.2]} 8. O-O-O {[%clk
0:02:42.7]} 8... Be6 {[%clk 0:02:25.8]} 9. Bb3 {[%clk 0:02:32.5]} 9... Bxb3
{[%clk 0:02:21.2]} 10. axb3 {[%clk 0:02:31.7]} 10... d5 {[%clk 0:02:07.8]} 11.
Bg5 {[%clk 0:02:30.2]} 11... dxe4 {[%clk 0:01:59.6]} 12. Bxf6 {[%clk 0:02:28.3]}
12... e3 {[%clk 0:01:41.3]} 13. Bxd8 {[%clk 0:02:25.7]} 13... exd2+ {[%clk
0:01:41.1]} 14. Kxd2 {[%clk 0:02:25.6]} 14... Raxd8 {[%clk 0:01:40.8]} 15. Nf3
{[%clk 0:02:25.3]} 15... Nd4 {[%clk 0:01:35.5]} 16. Rhf1 {[%clk 0:02:21.5]}
16... c6 {[%clk 0:01:32.4]} 17. Ne4 {[%clk 0:02:18.1]} 17... Nxf3+ {[%clk
0:01:25.2]} 18. Rxf3 {[%clk 0:02:17.2]} 18... Be7 {[%clk 0:01:25.9]} 19. g4
{[%clk 0:02:13.5]} 19... f6 {[%clk 0:01:23.7]} 20. c3 {[%clk 0:02:10.7]} 20...
Rfe8 {[%clk 0:01:18.9]} 21. Kc2 {[%clk 0:01:59.3]} 21... Bf8 {[%clk 0:01:16.2]}
22. b4 {[%clk 0:01:55.6]} 22... a6 {[%clk 0:01:15.2]} 23. Rdf1 {[%clk
0:01:54.6]} 23... Re5 {[%clk 0:01:11.5]} 24. Rf5 {[%clk 0:01:53.9]} 24... Rdd5
{[%clk 0:01:09.2]} 25. Rxe5 {[%clk 0:01:45.3]} 25... Rxe5 {[%clk 0:01:07.3]} 26.
Rf4 {[%clk 0:01:44.4]} 26... h5 {[%clk 0:01:05.5]} 27. d4 {[%clk 0:01:42.5]}
27... Rd5 {[%clk 0:01:01.6]} 28. h3 {[%clk 0:01:40.5]} 28... hxg4 {[%clk
0:00:53.9]} 29. hxg4 {[%clk 0:01:39.8]} 29... Kf7 {[%clk 0:00:52.2]} 30. Kd3
{[%clk 0:01:38.4]} 30... Kg6 {[%clk 0:00:48]} 31. Rf1 {[%clk 0:01:24.9]} 31...
f5 {[%clk 0:00:41.3]} 32. Ng3 {[%clk 0:01:22.2]} 32... f4 {[%clk 0:00:34.9]} 33.
Ne4 {[%clk 0:01:10.3]} 33... a5 {[%clk 0:00:18.4]} 34. Rxf4 {[%clk 0:01:06.5]}
34... Be7 {[%clk 0:00:17.7]} 35. c4 {[%clk 0:00:56.7]} 35... Rd7 {[%clk
0:00:16.5]} 36. bxa5 {[%clk 0:00:55.9]} 36... Bb4 {[%clk 0:00:16]} 37. Rf5
{[%clk 0:00:53.5]} 37... Rd8 {[%clk 0:00:10.4]} 38. Rg5+ {[%clk 0:00:44]} 38...
Kh6 {[%clk 0:00:10.1]} 39. Re5 {[%clk 0:00:40.1]} 39... Ra8 {[%clk 0:00:08.2]}
40. Re6+ {[%clk 0:00:36.9]} 40... g6 {[%clk 0:00:07.2]} 41. Nd6 {[%clk
0:00:33.4]} 41... Bxd6 {[%clk 0:00:05.6]} 42. Rxd6 {[%clk 0:00:32.7]} 42... Rxa5
{[%clk 0:00:04.5]} 43. Rd7 {[%clk 0:00:31.7]} 43... Ra7 {[%clk 0:00:03.2]} 44.
d5 {[%clk 0:00:26.9]} 44... cxd5 {[%clk 0:00:03.1]} 45. Rxd5 {[%clk 0:00:26.1]}
45... Ra2 {[%clk 0:00:02.1]} 46. Rb5 {[%clk 0:00:25.2]} 1-0

[Event "Late-Titled-Tuesday-Blitz-June-18-2024"]
[Site "Chess.com"]
[Date "2024.06.18"]
[Round "5"]
[White "fly_21"]
[Black "Mops_2004"]
[Result "0-1"]
[WhiteElo "2584"]
[BlackElo "2818"]
[TimeControl "180+1"]
[EndTime "14:57:55 PDT"]
[Termination "Mops_2004 won on time"]

1. d4 {[%clk 0:03:00.9]} 1... g6 {[%clk 0:02:59.8]} 2. c4 {[%clk 0:03:00.3]}
2... Bg7 {[%clk 0:03:00.2]} 3. e4 {[%clk 0:03:00.5]} 3... d6 {[%clk 0:03:00.6]}
4. Nc3 {[%clk 0:02:58]} 4... e5 {[%clk 0:03:00.7]} 5. Nf3 {[%clk 0:02:49.3]}
5... Bg4 {[%clk 0:03:00.1]} 6. dxe5 {[%clk 0:02:49.1]} 6... dxe5 {[%clk
0:03:01]} 7. Qxd8+ {[%clk 0:02:44.9]} 7... Kxd8 {[%clk 0:03:01.9]} 8. Be3 {[%clk
0:02:43.6]} 8... Nc6 {[%clk 0:03:00.9]} 9. Ng5 {[%clk 0:02:20.1]} 9... Nh6
{[%clk 0:02:52.8]} 10. h3 {[%clk 0:02:19.8]} 10... Bd7 {[%clk 0:02:48.9]} 11.
O-O-O {[%clk 0:02:13.3]} 11... Kc8 {[%clk 0:02:43.2]} 12. g4 {[%clk 0:02:04.1]}
12... Nd4 {[%clk 0:02:24.6]} 13. Bg2 {[%clk 0:01:56.8]} 13... f6 {[%clk
0:02:19.4]} 14. Nf3 {[%clk 0:01:56.4]} 14... Nxf3 {[%clk 0:02:18.9]} 15. Bxf3
{[%clk 0:01:57.3]} 15... Nf7 {[%clk 0:02:18.5]} 16. Nd5 {[%clk 0:01:39.5]} 16...
c6 {[%clk 0:02:09.8]} 17. Nc3 {[%clk 0:01:39.5]} 17... Bh6 {[%clk 0:02:03.9]}
18. Kd2 {[%clk 0:01:36.6]} 18... Kc7 {[%clk 0:02:00.5]} 19. Ke2 {[%clk
0:01:34.8]} 19... Bxe3 {[%clk 0:01:59.7]} 20. fxe3 {[%clk 0:01:22.6]} 20... Be6
{[%clk 0:01:47.5]} 21. b3 {[%clk 0:01:22.7]} 21... Rad8 {[%clk 0:01:44.9]} 22.
Rxd8 {[%clk 0:01:21.6]} 22... Rxd8 {[%clk 0:01:44]} 23. Rd1 {[%clk 0:01:22.2]}
23... Rxd1 {[%clk 0:01:39.7]} 24. Nxd1 {[%clk 0:01:23.1]} 24... b5 {[%clk
0:01:23.5]} 25. cxb5 {[%clk 0:01:21.5]} 25... cxb5 {[%clk 0:01:23.6]} 26. h4
{[%clk 0:01:18.5]} 26... Kb6 {[%clk 0:01:19]} 27. Nc3 {[%clk 0:01:14.7]} 27...
Kc5 {[%clk 0:01:15.4]} 28. Kd3 {[%clk 0:01:10]} 28... Nh6 {[%clk 0:01:05.4]} 29.
Nd5 {[%clk 0:00:59.6]} 29... Bxg4 {[%clk 0:01:00.8]} 30. Bg2 {[%clk 0:00:49]}
30... Ng8 {[%clk 0:00:57.8]} 31. b4+ {[%clk 0:00:48.9]} 31... Kc6 {[%clk
0:00:57]} 32. a3 {[%clk 0:00:48.6]} 32... Be6 {[%clk 0:00:56.6]} 33. Nc3 {[%clk
0:00:48.4]} 33... h5 {[%clk 0:00:47.8]} 34. Bf3 {[%clk 0:00:48.4]} 34... Ne7
{[%clk 0:00:42.3]} 35. a4 {[%clk 0:00:32.6]} 35... a6 {[%clk 0:00:41.7]} 36.
axb5+ {[%clk 0:00:30.6]} 36... axb5 {[%clk 0:00:42.6]} 37. Kd2 {[%clk
0:00:30.4]} 37... Nc8 {[%clk 0:00:39.8]} 38. Be2 {[%clk 0:00:30.8]} 38... Nd6
{[%clk 0:00:39.6]} 39. Ke1 {[%clk 0:00:29]} 39... Bc4 {[%clk 0:00:34]} 40. Bf3
{[%clk 0:00:23.6]} 40... Kd7 {[%clk 0:00:29.2]} 41. Kd2 {[%clk 0:00:20.1]} 41...
Ke6 {[%clk 0:00:29.3]} 42. Bg2 {[%clk 0:00:16.4]} 42... Kf7 {[%clk 0:00:28.6]}
43. Bh3 {[%clk 0:00:09.7]} 43... g5 {[%clk 0:00:27.8]} 0-1

[Event "Late-Titled-Tuesday-Blitz-June-18-2024"]
[Site "Chess.com"]
[Date "2024.06.18"]
[Round "5"]
[White "pirulillo"]
[Black "dosto07"]
[Result "1-0"]
[WhiteElo "2409"]
[BlackElo "2601"]
[TimeControl "180+1"]
[EndTime "14:57:56 PDT"]
[Termination "pirulillo won by resignation"]

1. e4 {[%clk 0:03:00.9]} 1... e5 {[%clk 0:02:59.5]} 2. Bc4 {[%clk 0:02:59.8]}
2... Nc6 {[%clk 0:02:58.7]} 3. d3 {[%clk 0:02:59.8]} 3... Bc5 {[%clk 0:02:58.3]}
4. Nc3 {[%clk 0:02:59.8]} 4... d6 {[%clk 0:02:52.7]} 5. Na4 {[%clk 0:02:59.4]}
5... Bb6 {[%clk 0:02:50.3]} 6. Nxb6 {[%clk 0:02:58.9]} 6... axb6 {[%clk
0:02:50.5]} 7. a3 {[%clk 0:02:59.4]} 7... Nf6 {[%clk 0:02:50.5]} 8. Ne2 {[%clk
0:02:49.8]} 8... Be6 {[%clk 0:02:48]} 9. Bg5 {[%clk 0:02:21.1]} 9... Bxc4 {[%clk
0:02:44.7]} 10. dxc4 {[%clk 0:02:22]} 10... h6 {[%clk 0:02:44.9]} 11. Bxf6
{[%clk 0:02:19.6]} 11... Qxf6 {[%clk 0:02:45]} 12. O-O {[%clk 0:02:17.6]} 12...
O-O {[%clk 0:02:44.7]} 13. b3 {[%clk 0:02:15.6]} 13... Qe6 {[%clk 0:02:38.9]}
14. Nc3 {[%clk 0:02:07.7]} 14... Nd4 {[%clk 0:02:36]} 15. Nd5 {[%clk 0:02:06.5]}
15... Rac8 {[%clk 0:02:16.8]} 16. f4 {[%clk 0:02:02.7]} 16... exf4 {[%clk
0:02:15.2]} 17. Qxd4 {[%clk 0:02:01.8]} 17... Rfe8 {[%clk 0:02:04.7]} 18. Rae1
{[%clk 0:01:58.8]} 18... Qe5 {[%clk 0:02:02.3]} 19. Qd2 {[%clk 0:01:56.7]} 19...
g5 {[%clk 0:01:55.6]} 20. g3 {[%clk 0:01:41.2]} 20... Kh8 {[%clk 0:01:45.3]} 21.
gxf4 {[%clk 0:01:40.5]} 21... gxf4 {[%clk 0:01:45.6]} 22. Qxf4 {[%clk
0:01:39.8]} 22... Rg8+ {[%clk 0:01:45.5]} 23. Kh1 {[%clk 0:01:39.4]} 23... Qxf4
{[%clk 0:01:37.2]} 24. Rxf4 {[%clk 0:01:38.7]} 24... Rg7 {[%clk 0:01:34.8]} 25.
Nf6 {[%clk 0:01:34.4]} 25... Rd8 {[%clk 0:01:30.9]} 26. Ref1 {[%clk 0:01:29.8]}
26... c6 {[%clk 0:01:30.2]} 27. Ng4 {[%clk 0:01:22.9]} 27... Re8 {[%clk
0:01:18.8]} 28. Nxh6 {[%clk 0:01:16.2]} 28... f5 {[%clk 0:01:11.9]} 29. Nxf5
{[%clk 0:01:14.1]} 29... Rh7 {[%clk 0:01:09]} 30. Rg1 {[%clk 0:01:03.5]} 30...
Re6 {[%clk 0:01:07.3]} 31. Rfg4 {[%clk 0:01:00.3]} 31... Rf7 {[%clk 0:01:05.8]}
32. Rg8+ {[%clk 0:00:57.6]} 32... Kh7 {[%clk 0:01:05.5]} 33. R8g7+ {[%clk
0:00:57.7]} 33... Rxg7 {[%clk 0:01:05.5]} 34. Rxg7+ {[%clk 0:00:58.2]} 34... Kh8
{[%clk 0:01:06.2]} 35. Rg4 {[%clk 0:00:58.1]} 35... b5 {[%clk 0:01:03.5]} 36.
Kg2 {[%clk 0:00:56.7]} 36... bxc4 {[%clk 0:01:02.4]} 37. bxc4 {[%clk 0:00:57.6]}
37... b5 {[%clk 0:01:00.7]} 38. cxb5 {[%clk 0:00:56.5]} 38... cxb5 {[%clk
0:01:01.6]} 39. Kf3 {[%clk 0:00:56]} 39... Kh7 {[%clk 0:00:55.7]} 40. h4 {[%clk
0:00:54.5]} 40... Rf6 {[%clk 0:00:51.1]} 41. Kf4 {[%clk 0:00:53.1]} 41... Rf8
{[%clk 0:00:50.3]} 42. Rg7+ {[%clk 0:00:51.9]} 42... Kh8 {[%clk 0:00:50]} 43.
Rb7 {[%clk 0:00:50.5]} 43... Ra8 {[%clk 0:00:48.1]} 44. Rxb5 {[%clk 0:00:48.6]}
44... Rxa3 {[%clk 0:00:40.9]} 45. Nxd6 {[%clk 0:00:47.2]} 45... Rc3 {[%clk
0:00:37.4]} 46. Rb8+ {[%clk 0:00:44.4]} 46... Kg7 {[%clk 0:00:37.4]} 47. Rc8
{[%clk 0:00:44.6]} 47... Rh3 {[%clk 0:00:35.8]} 48. Nf5+ {[%clk 0:00:44.1]}
48... Kf6 {[%clk 0:00:35.3]} 49. c4 {[%clk 0:00:43.8]} 49... Rh1 {[%clk
0:00:34.7]} 50. Rc6+ {[%clk 0:00:43.3]} 50... Kf7 {[%clk 0:00:34.8]} 51. c5
{[%clk 0:00:42.8]} 51... Rf1+ {[%clk 0:00:32.7]} 52. Ke5 {[%clk 0:00:42.7]}
52... Rd1 {[%clk 0:00:30.9]} 53. Rc7+ {[%clk 0:00:42.4]} 53... Kg6 {[%clk
0:00:31.4]} 54. c6 {[%clk 0:00:40.3]} 54... Kh5 {[%clk 0:00:30.5]} 55. Rd7
{[%clk 0:00:36.8]} 55... Rc1 {[%clk 0:00:29.6]} 56. c7 {[%clk 0:00:36.4]} 56...
Rc6 {[%clk 0:00:28.3]} 57. Nd6 {[%clk 0:00:34.3]} 57... Rc5+ {[%clk 0:00:25.8]}
58. Kd4 {[%clk 0:00:33.5]} 1-0

[Event "Late-Titled-Tuesday-Blitz-June-18-2024"]
[Site "Chess.com"]
[Date "2024.06.18"]
[Round "5"]
[White "KebabJangles"]
[Black "MarceloPlaya"]
[Result "0-1"]
[WhiteElo "2285"]
[BlackElo "2415"]
[TimeControl "180+1"]
[EndTime "14:57:58 PDT"]
[Termination "MarceloPlaya won by resignation"]

1. d4 {[%clk 0:02:59.6]} 1... e6 {[%clk 0:02:58.6]} 2. c4 {[%clk 0:02:54.1]}
2... Nf6 {[%clk 0:02:57.4]} 3. g3 {[%clk 0:02:50.9]} 3... Bb4+ {[%clk
0:02:56.6]} 4. Nd2 {[%clk 0:02:47.4]} 4... O-O {[%clk 0:02:55.5]} 5. Bg2 {[%clk
0:02:40.5]} 5... d5 {[%clk 0:02:55.2]} 6. Nf3 {[%clk 0:02:34.9]} 6... Qe7 {[%clk
0:02:51.2]} 7. O-O {[%clk 0:02:33.2]} 7... Rd8 {[%clk 0:02:46.4]} 8. Qc2 {[%clk
0:02:31.2]} 8... Nc6 {[%clk 0:02:40.5]} 9. e3 {[%clk 0:02:28.5]} 9... Bxd2
{[%clk 0:02:30.7]} 10. Bxd2 {[%clk 0:02:25.1]} 10... Ne4 {[%clk 0:02:30.6]} 11.
Bc3 {[%clk 0:02:23.2]} 11... Bd7 {[%clk 0:02:25.6]} 12. Nd2 {[%clk 0:02:20.8]}
12... Nxc3 {[%clk 0:02:22.8]} 13. Qxc3 {[%clk 0:02:19.4]} 13... Be8 {[%clk
0:02:21.8]} 14. a3 {[%clk 0:02:17.8]} 14... Rac8 {[%clk 0:02:16.2]} 15. b4
{[%clk 0:02:16.8]} 15... Nb8 {[%clk 0:02:14.3]} 16. cxd5 {[%clk 0:02:14.6]}
16... exd5 {[%clk 0:02:12.6]} 17. Rac1 {[%clk 0:02:11.4]} 17... c6 {[%clk
0:01:51.1]} 18. Qc5 {[%clk 0:02:11.3]} 18... Qxc5 {[%clk 0:01:46.5]} 19. bxc5
{[%clk 0:02:11.5]} 19... b5 {[%clk 0:01:45]} 20. Nb3 {[%clk 0:02:09.7]} 20...
Nd7 {[%clk 0:01:33.8]} 21. Na5 {[%clk 0:02:07.4]} 21... Rc7 {[%clk 0:01:31.3]}
22. Rb1 {[%clk 0:02:05.7]} 22... Nf6 {[%clk 0:01:28.8]} 23. Rb4 {[%clk
0:02:03.9]} 23... Bd7 {[%clk 0:01:15.9]} 24. Rfb1 {[%clk 0:01:52.4]} 24... h5
{[%clk 0:01:14.6]} 25. a4 {[%clk 0:01:48.6]} 25... a6 {[%clk 0:01:13]} 26. axb5
{[%clk 0:01:48.6]} 26... axb5 {[%clk 0:01:11.7]} 27. R4b2 {[%clk 0:01:38.2]}
27... Ra7 {[%clk 0:01:09.6]} 28. Nb3 {[%clk 0:01:36.2]} 28... Rda8 {[%clk
0:01:07.8]} 29. Nd2 {[%clk 0:01:32.2]} 29... Ra2 {[%clk 0:01:02.5]} 30. Nf3
{[%clk 0:01:31.6]} 30... Rxb2 {[%clk 0:01:00.4]} 31. Rxb2 {[%clk 0:01:32.5]}
31... Ra1+ {[%clk 0:00:59.8]} 32. Bf1 {[%clk 0:01:32.4]} 32... Bh3 {[%clk
0:00:57.6]} 33. Nd2 {[%clk 0:01:31.5]} 33... Ne4 {[%clk 0:00:57.6]} 34. Rb1
{[%clk 0:01:31.1]} 34... Nxd2 {[%clk 0:00:49.7]} 35. Rxa1 {[%clk 0:01:30.1]}
35... Nxf1 {[%clk 0:00:39.9]} 36. Ra2 {[%clk 0:01:20.4]} 36... Kf8 {[%clk
0:00:33.4]} 37. Rb2 {[%clk 0:01:12.7]} 37... Ke7 {[%clk 0:00:32.1]} 38. f3
{[%clk 0:01:10.8]} 38... Kf6 {[%clk 0:00:26.7]} 39. Kf2 {[%clk 0:01:06.7]} 39...
Nxh2 {[%clk 0:00:24.2]} 40. Rb1 {[%clk 0:01:06.8]} 40... Nf1 {[%clk 0:00:23.1]}
41. Rd1 {[%clk 0:00:59.7]} 41... g5 {[%clk 0:00:20.5]} 42. e4 {[%clk 0:00:56.3]}
42... dxe4 {[%clk 0:00:19.2]} 43. fxe4 {[%clk 0:00:57.2]} 43... Ke7 {[%clk
0:00:17.2]} 44. d5 {[%clk 0:00:57]} 44... Kd7 {[%clk 0:00:17.4]} 45. d6 {[%clk
0:00:54.3]} 45... h4 {[%clk 0:00:16.5]} 46. gxh4 {[%clk 0:00:54.1]} 46... gxh4
{[%clk 0:00:16.6]} 47. Ra1 {[%clk 0:00:51.8]} 47... Nd2 {[%clk 0:00:14.1]} 48.
Ra7+ {[%clk 0:00:51.7]} 48... Kd8 {[%clk 0:00:13.6]} 49. Rxf7 {[%clk 0:00:48.9]}
49... Nxe4+ {[%clk 0:00:12.9]} 50. Ke3 {[%clk 0:00:48.7]} 50... Nxc5 {[%clk
0:00:12.3]} 51. Kd4 {[%clk 0:00:44.5]} 51... Nd7 {[%clk 0:00:10]} 52. Rh7 {[%clk
0:00:43.8]} 52... c5+ {[%clk 0:00:09.8]} 53. Kd5 {[%clk 0:00:44.2]} 53... Bg2+
{[%clk 0:00:09.6]} 54. Ke6 {[%clk 0:00:44]} 54... Nf8+ {[%clk 0:00:07.9]} 55.
Ke5 {[%clk 0:00:37.5]} 0-1

[Event "Late-Titled-Tuesday-Blitz-June-18-2024"]
[Site "Chess.com"]
[Date "2024.06.18"]
[Round "5"]
[White "DenLaz"]
[Black "Durarbayli"]
[Result "1-0"]
[WhiteElo "3100"]
[BlackElo "2949"]
[TimeControl "180+1"]
[EndTime "14:58:00 PDT"]
[Termination "DenLaz won by checkmate"]

1. d4 {[%clk 0:02:58.6]} 1... d5 {[%clk 0:02:59.7]} 2. c4 {[%clk 0:02:58.8]}
2... c6 {[%clk 0:03:00.3]} 3. Nf3 {[%clk 0:02:58.8]} 3... Nf6 {[%clk 0:03:00.9]}
4. e3 {[%clk 0:02:57.6]} 4... Bf5 {[%clk 0:03:00.2]} 5. Nc3 {[%clk 0:02:57.6]}
5... e6 {[%clk 0:03:00.4]} 6. Nh4 {[%clk 0:02:57.4]} 6... Be4 {[%clk 0:03:01]}
7. f3 {[%clk 0:02:57.6]} 7... Bg6 {[%clk 0:03:01.7]} 8. Bd2 {[%clk 0:02:57.2]}
8... Be7 {[%clk 0:03:01.6]} 9. Nxg6 {[%clk 0:02:57.2]} 9... hxg6 {[%clk
0:03:02.5]} 10. Qc2 {[%clk 0:02:57.9]} 10... a5 {[%clk 0:03:02.6]} 11. h4 {[%clk
0:02:57.4]} 11... a4 {[%clk 0:02:55.9]} 12. cxd5 {[%clk 0:02:53.7]} 12... Nxd5
{[%clk 0:02:55.5]} 13. Nxd5 {[%clk 0:02:39.4]} 13... exd5 {[%clk 0:02:55.6]} 14.
g3 {[%clk 0:02:32.6]} 14... Nd7 {[%clk 0:02:15.1]} 15. Kf2 {[%clk 0:02:30.9]}
15... g5 {[%clk 0:02:02]} 16. h5 {[%clk 0:02:27]} 16... g4 {[%clk 0:02:02.4]}
17. fxg4 {[%clk 0:02:03.9]} 17... Nf6 {[%clk 0:02:01.9]} 18. Bd3 {[%clk
0:02:03.6]} 18... Nxg4+ {[%clk 0:01:43.5]} 19. Kf3 {[%clk 0:02:03.2]} 19... Nf6
{[%clk 0:01:30.5]} 20. g4 {[%clk 0:02:02.5]} 20... Qd6 {[%clk 0:01:14]} 21. Bf5
{[%clk 0:01:52.1]} 21... Rf8 {[%clk 0:01:08]} 22. Ke2 {[%clk 0:01:48.7]} 22...
Nd7 {[%clk 0:01:03.8]} 23. Raf1 {[%clk 0:01:46.6]} 23... Bg5 {[%clk 0:01:02.8]}
24. a3 {[%clk 0:01:44.5]} 24... b6 {[%clk 0:00:43.3]} 25. Bb4 {[%clk 0:01:35.9]}
25... c5 {[%clk 0:00:39.5]} 26. dxc5 {[%clk 0:01:35.2]} 26... Nxc5 {[%clk
0:00:36.1]} 27. Bc3 {[%clk 0:01:27]} 27... Qg3 {[%clk 0:00:23.4]} 28. Kd1 {[%clk
0:01:20.7]} 28... g6 {[%clk 0:00:15.3]} 29. hxg6 {[%clk 0:01:16.2]} 29... fxg6
{[%clk 0:00:16.2]} 30. Bxg6+ {[%clk 0:01:16.3]} 30... Ke7 {[%clk 0:00:16.4]} 31.
Bf5 {[%clk 0:01:12.1]} 31... Kd6 {[%clk 0:00:09.8]} 32. Kc1 {[%clk 0:00:36]}
32... Rae8 {[%clk 0:00:08.1]} 33. Kb1 {[%clk 0:00:36]} 33... Rxe3 {[%clk
0:00:08.2]} 34. Rd1 {[%clk 0:00:32.9]} 34... Bf6 {[%clk 0:00:05.4]} 35. Bxf6
{[%clk 0:00:22.6]} 35... Rxf6 {[%clk 0:00:05.1]} 36. Qd2 {[%clk 0:00:23.1]}
36... Qe5 {[%clk 0:00:05.1]} 37. Rhe1 {[%clk 0:00:22.1]} 37... Rxe1 {[%clk
0:00:05.1]} 38. Rxe1 {[%clk 0:00:23]} 38... Qg3 {[%clk 0:00:05.3]} 39. Qe2
{[%clk 0:00:19.6]} 39... Ne4 {[%clk 0:00:03.4]} 40. Bxe4 {[%clk 0:00:17.9]}
40... dxe4 {[%clk 0:00:04.3]} 41. Qxe4 {[%clk 0:00:18.3]} 41... Qf4 {[%clk
0:00:03.9]} 42. Rd1+ {[%clk 0:00:13.8]} 42... Kc7 {[%clk 0:00:04.5]} 43. Qe7+
{[%clk 0:00:14.2]} 43... Kc6 {[%clk 0:00:05.4]} 44. Qd7+ {[%clk 0:00:14.4]}
44... Kc5 {[%clk 0:00:05.2]} 45. Qd5# {[%clk 0:00:15.1]} 1-0

[Event "Late-Titled-Tuesday-Blitz-June-18-2024"]
[Site "Chess.com"]
[Date "2024.06.18"]
[Round "5"]
[White "Mikhail_Golubev"]
[Black "champ2005"]
[Result "0-1"]
[WhiteElo "2664"]
[BlackElo "3072"]
[TimeControl "180+1"]
[EndTime "14:58:00 PDT"]
[Termination "champ2005 won on time"]

1. e4 {[%clk 0:03:00.9]} 1... c6 {[%clk 0:02:59.3]} 2. d4 {[%clk 0:02:58.3]}
2... d5 {[%clk 0:03:00.2]} 3. e5 {[%clk 0:02:58.4]} 3... c5 {[%clk 0:03:00.5]}
4. dxc5 {[%clk 0:02:56.6]} 4... e6 {[%clk 0:03:00.4]} 5. Nf3 {[%clk 0:02:38.4]}
5... Bxc5 {[%clk 0:03:00]} 6. a3 {[%clk 0:02:38.6]} 6... Ne7 {[%clk 0:02:59]} 7.
b4 {[%clk 0:02:34.5]} 7... Bb6 {[%clk 0:02:59.5]} 8. Bd3 {[%clk 0:02:33.2]} 8...
Nbc6 {[%clk 0:02:59.3]} 9. O-O {[%clk 0:02:30.4]} 9... O-O {[%clk 0:02:58.8]}
10. b5 {[%clk 0:02:16.6]} 10... Na5 {[%clk 0:02:48.2]} 11. Bxh7+ {[%clk
0:02:03.8]} 11... Kxh7 {[%clk 0:02:46.1]} 12. Ng5+ {[%clk 0:02:03.9]} 12... Kg6
{[%clk 0:02:46.4]} 13. Qg4 {[%clk 0:01:53.3]} 13... f5 {[%clk 0:02:45.1]} 14.
Qh4 {[%clk 0:01:26.3]} 14... Rh8 {[%clk 0:02:39.4]} 15. Qg3 {[%clk 0:01:26.4]}
15... f4 {[%clk 0:02:16.3]} 16. Qg4 {[%clk 0:01:21]} 16... Qf8 {[%clk
0:01:53.9]} 17. Bxf4 {[%clk 0:00:49.1]} 17... Qf5 {[%clk 0:01:27.5]} 18. Qg3
{[%clk 0:00:49]} 18... Bd7 {[%clk 0:01:09]} 19. Nxe6+ {[%clk 0:00:15.6]} 19...
Kf7 {[%clk 0:01:08.8]} 20. Ng5+ {[%clk 0:00:11.6]} 20... Kg8 {[%clk 0:01:01]}
21. e6 {[%clk 0:00:11.8]} 21... Bxb5 {[%clk 0:00:58.7]} 22. Re1 {[%clk
0:00:10.8]} 22... Nc4 {[%clk 0:00:47.1]} 23. Nc3 {[%clk 0:00:10.2]} 23... Bc6
{[%clk 0:00:44.2]} 24. Nf7 {[%clk 0:00:09.5]} 24... Rf8 {[%clk 0:00:28]} 25.
Rab1 {[%clk 0:00:02]} 25... Rh5 {[%clk 0:00:19.6]} 26. Rxb6 {[%clk 0:00:01.2]}
26... axb6 {[%clk 0:00:19.5]} 27. Nh6+ {[%clk 0:00:01]} 27... Rxh6 {[%clk
0:00:19.4]} 28. Bxh6 {[%clk 0:00:01.7]} 28... Qg6 {[%clk 0:00:18.7]} 29. Bg5
{[%clk 0:00:01.5]} 29... Nf5 {[%clk 0:00:17.8]} 30. Qf4 {[%clk 0:00:01.9]} 30...
Ncd6 {[%clk 0:00:10.4]} 31. Qc1 {[%clk 0:00:02.4]} 31... d4 {[%clk 0:00:10.3]}
32. e7 {[%clk 0:00:02.7]} 32... Nxe7 {[%clk 0:00:07.7]} 33. Na2 {[%clk
0:00:03.1]} 33... Nd5 {[%clk 0:00:07]} 34. Nb4 {[%clk 0:00:03.3]} 34... Nxb4
{[%clk 0:00:05.6]} 35. axb4 {[%clk 0:00:04.2]} 35... Nf5 {[%clk 0:00:06]} 36. h4
{[%clk 0:00:04.6]} 36... Nxh4 {[%clk 0:00:06.1]} 0-1

[Event "Late-Titled-Tuesday-Blitz-June-18-2024"]
[Site "Chess.com"]
[Date "2024.06.18"]
[Round "5"]
[White "Rainbow2014"]
[Black "Rashad_Zeynalli"]
[Result "1-0"]
[WhiteElo "2513"]
[BlackElo "2727"]
[TimeControl "180+1"]
[EndTime "14:58:01 PDT"]
[Termination "Rainbow2014 won by resignation"]

1. e4 {[%clk 0:02:43.2]} 1... e5 {[%clk 0:02:59.9]} 2. Nf3 {[%clk 0:02:43]} 2...
Nc6 {[%clk 0:03:00.4]} 3. Bb5 {[%clk 0:02:41.8]} 3... a6 {[%clk 0:03:00.8]} 4.
Ba4 {[%clk 0:02:41.7]} 4... Nf6 {[%clk 0:03:00.1]} 5. O-O {[%clk 0:02:41.9]}
5... b5 {[%clk 0:03:00.5]} 6. Bb3 {[%clk 0:02:41.9]} 6... Bc5 {[%clk 0:03:01]}
7. Re1 {[%clk 0:02:37.9]} 7... d6 {[%clk 0:03:00.4]} 8. a4 {[%clk 0:02:36.8]}
8... Rb8 {[%clk 0:03:00]} 9. c3 {[%clk 0:02:33.6]} 9... Bg4 {[%clk 0:02:59]} 10.
h3 {[%clk 0:02:30.4]} 10... Bh5 {[%clk 0:02:51.7]} 11. d3 {[%clk 0:02:30.4]}
11... O-O {[%clk 0:02:48.2]} 12. Nbd2 {[%clk 0:02:27.4]} 12... Kh8 {[%clk
0:02:38.6]} 13. Nf1 {[%clk 0:02:26.7]} 13... Bg6 {[%clk 0:02:32.5]} 14. Ng3
{[%clk 0:02:14.8]} 14... h6 {[%clk 0:02:31.8]} 15. Nh4 {[%clk 0:02:11.7]} 15...
Ne7 {[%clk 0:02:28.6]} 16. Qf3 {[%clk 0:02:07.9]} 16... Kh7 {[%clk 0:02:23.3]}
17. Bd2 {[%clk 0:01:53.2]} 17... bxa4 {[%clk 0:02:21.1]} 18. Bxa4 {[%clk
0:01:42.2]} 18... Rxb2 {[%clk 0:02:22]} 19. Be3 {[%clk 0:01:42.3]} 19... Bb6
{[%clk 0:02:06.3]} 20. Bxb6 {[%clk 0:01:33.1]} 20... cxb6 {[%clk 0:01:56.2]} 21.
Reb1 {[%clk 0:01:02.3]} 21... Rxb1+ {[%clk 0:01:53.5]} 22. Rxb1 {[%clk
0:01:03.2]} 22... b5 {[%clk 0:01:53.7]} 23. Bb3 {[%clk 0:01:03.1]} 23... Qa5
{[%clk 0:01:51]} 24. d4 {[%clk 0:00:55.5]} 24... Rc8 {[%clk 0:01:49.4]} 25. Nxg6
{[%clk 0:00:36.7]} 25... fxg6 {[%clk 0:01:45.8]} 26. Ne2 {[%clk 0:00:36.9]}
26... Qc7 {[%clk 0:01:36.6]} 27. Be6 {[%clk 0:00:20]} 27... Rf8 {[%clk
0:01:34.6]} 28. Qe3 {[%clk 0:00:19.4]} 28... Qc6 {[%clk 0:01:25.1]} 29. Ra1
{[%clk 0:00:18.3]} 29... Nxe4 {[%clk 0:01:19.6]} 30. d5 {[%clk 0:00:13.2]} 30...
Qc4 {[%clk 0:01:19.8]} 31. Rxa6 {[%clk 0:00:12.8]} 31... Rxf2 {[%clk 0:01:14]}
32. Ng3 {[%clk 0:00:11.4]} 32... Rf4 {[%clk 0:00:59.5]} 33. Nxe4 {[%clk
0:00:09.6]} 33... Rxe4 {[%clk 0:00:57.5]} 34. Qg3 {[%clk 0:00:08.8]} 34... Qc5+
{[%clk 0:00:38.2]} 35. Kh2 {[%clk 0:00:08.7]} 35... Rf4 {[%clk 0:00:33]} 36. Ra8
{[%clk 0:00:06.7]} 36... g5 {[%clk 0:00:24.3]} 37. Re8 {[%clk 0:00:05.8]} 37...
Nxd5 {[%clk 0:00:20.6]} 38. Qd3+ {[%clk 0:00:05.2]} 38... e4 {[%clk 0:00:19.1]}
39. Qxd5 {[%clk 0:00:05.2]} 39... Qxd5 {[%clk 0:00:18.4]} 40. Bxd5 {[%clk
0:00:06.1]} 40... Rf5 {[%clk 0:00:16.8]} 41. Bxe4 {[%clk 0:00:06.1]} 41... g6
{[%clk 0:00:16.6]} 42. Bxf5 {[%clk 0:00:06.5]} 42... gxf5 {[%clk 0:00:17.5]} 43.
Rd8 {[%clk 0:00:07.2]} 1-0